[Event "Titled Tuesday Blitz April 05 Late 2022"]
[White "Saldano Dayer, Horacio"]
[Black "Djordjevic, Dejan N"]
[WhiteFideId "103411"]
[BlackFideId "913316"]
[WhiteElo "2419"]
[BlackElo "2262"]
[Result "0-1"]
[Round "07"]
[TimeControl "180+1"]
[Date "2022.04.06"]
[WhiteClock "0:00:13"]
[BlackClock "0:00:24"]

1. Nf3 {[%clk 0:03:00]}  Nf6 {[%clk 0:02:59]} 2. g3 {[%clk 0:02:53]}  g6 {[%clk 0:02:58]} 3. Bg2 {[%clk 0:02:53]}  Bg7 {[%clk 0:02:59]} 4. O-O {[%clk 0:02:53]}  d6 {[%clk 0:02:59]} 5. d4 {[%clk 0:02:53]}  O-O {[%clk 0:03:00]} 6. b3 {[%clk 0:02:53]}  c6 {[%clk 0:02:58]} 7. c4 {[%clk 0:02:51]}  Bg4 {[%clk 0:02:56]} 8. h3 {[%clk 0:02:49]}  Bd7 {[%clk 0:02:56]} 9. Nc3 {[%clk 0:02:47]}  a5 {[%clk 0:02:56]} 10. e4 {[%clk 0:02:46]}  Na6 {[%clk 0:02:56]} 11. Re1 {[%clk 0:02:44]}  Ne8 {[%clk 0:02:55]} 12. Be3 {[%clk 0:02:37]}  Rc8 {[%clk 0:02:40]} 13. Rc1 {[%clk 0:02:35]}  b5 {[%clk 0:02:38]} 14. Qd2 {[%clk 0:02:24]}  b4 {[%clk 0:02:35]} 15. Nb1 {[%clk 0:02:00]}  c5 {[%clk 0:02:35]} 16. d5 {[%clk 0:01:57]}  a4 {[%clk 0:02:33]} 17. Qc2 {[%clk 0:01:54]}  Ra8 {[%clk 0:02:26]} 18. Nbd2 {[%clk 0:01:49]}  Qa5 {[%clk 0:02:12]} 19. Bf4 {[%clk 0:01:49]}  f6 {[%clk 0:01:58]} 20. h4 {[%clk 0:01:47]}  Nec7 {[%clk 0:01:46]} 21. Nf1 {[%clk 0:01:28]}  Rfb8 {[%clk 0:01:38]} 22. N1h2 {[%clk 0:01:15]}  Ne8 {[%clk 0:01:37]} 23. g4 {[%clk 0:01:14]}  Nac7 {[%clk 0:01:27]} 24. h5 {[%clk 0:01:12]}  axb3 {[%clk 0:01:25]} 25. axb3 {[%clk 0:01:12]}  Qa2 {[%clk 0:01:25]} 26. Qd3 {[%clk 0:01:11]}  Ra3 {[%clk 0:01:23]} 27. Rb1 {[%clk 0:01:09]}  Ra7 {[%clk 0:01:13]} 28. h6 {[%clk 0:00:55]}  Bf8 {[%clk 0:01:10]} 29. g5 {[%clk 0:00:55]}  Rba8 {[%clk 0:01:04]} 30. Nf1 {[%clk 0:00:42]}  Qa6 {[%clk 0:01:02]} 31. Bc1 {[%clk 0:00:39]}  Qc8 {[%clk 0:01:02]} 32. gxf6 {[%clk 0:00:36]}  exf6 {[%clk 0:01:00]} 33. Ng3 {[%clk 0:00:23]}  Ra1 {[%clk 0:00:58]} 34. Bd2 {[%clk 0:00:21]}  Rxb1 {[%clk 0:00:58]} 35. Rxb1 {[%clk 0:00:22]}  Ra2 {[%clk 0:00:57]} 36. Kh2 {[%clk 0:00:22]}  Bg4 {[%clk 0:00:55]} 37. Be3 {[%clk 0:00:19]}  Bd7 {[%clk 0:00:48]} 38. Ng1 {[%clk 0:00:18]}  Kf7 {[%clk 0:00:48]} 39. Bh3 {[%clk 0:00:18]}  Bxh3 {[%clk 0:00:45]} 40. Nxh3 {[%clk 0:00:19]}  Qg4 {[%clk 0:00:40]} 41. Qd1 {[%clk 0:00:17]}  Qxd1 {[%clk 0:00:35]} 42. Rxd1 {[%clk 0:00:18]}  g5 {[%clk 0:00:35]} 43. Bxg5 {[%clk 0:00:15]}  fxg5 {[%clk 0:00:35]} 44. Nxg5+ {[%clk 0:00:15]}  Kg6 {[%clk 0:00:35]} 45. Ne6 {[%clk 0:00:13]}  Nxe6 {[%clk 0:00:34]} 46. dxe6 {[%clk 0:00:14]}  Rxf2+ {[%clk 0:00:34]} 47. Kh3 {[%clk 0:00:15]}  Rf3 {[%clk 0:00:33]} 48. Kg2 {[%clk 0:00:15]}  Rxb3 {[%clk 0:00:32]} 49. Nf5 {[%clk 0:00:15]}  Kf6 {[%clk 0:00:31]} 50. Rf1 {[%clk 0:00:14]}  Kxe6 {[%clk 0:00:31]} 51. Ng7+ {[%clk 0:00:12]}  Bxg7 {[%clk 0:00:30]} 52. hxg7 {[%clk 0:00:12]}  Nxg7 {[%clk 0:00:31]} 53. Rh1 {[%clk 0:00:12]}  h5 {[%clk 0:00:30]} 54. Ra1 {[%clk 0:00:10]}  Ke5 {[%clk 0:00:28]} 55. Ra7 {[%clk 0:00:11]}  Ne6 {[%clk 0:00:28]} 56. Re7 {[%clk 0:00:11]}  Re3 {[%clk 0:00:27]} 57. Kf2 {[%clk 0:00:11]}  Rxe4 {[%clk 0:00:27]} 58. Kf3 {[%clk 0:00:12]}  Rxc4 {[%clk 0:00:27]} 59. Ke3 {[%clk 0:00:12]}  b3 {[%clk 0:00:26]} 60. Kd3 {[%clk 0:00:12]}  b2 {[%clk 0:00:24]} 61. Rb7 {[%clk 0:00:11]}  Rb4 {[%clk 0:00:24]} 62. Rxb4 {[%clk 0:00:12]}  cxb4 {[%clk 0:00:24]} 63. Kc2 {[%clk 0:00:13]}  h4 {[%clk 0:00:24]} 0-1


[Site "https://www.chess.com"]

[Event "Titled Tuesday Blitz April 05 Late 2022"]
[White "Sapunov, Evgeny"]
[Black "Zhigalko, Sergei"]
[WhiteFideId "4126661"]
[BlackFideId "13502956"]
[WhiteElo "2470"]
[BlackElo "2662"]
[Result "0-1"]
[Round "07"]
[TimeControl "180+1"]
[Date "2022.04.05"]
[WhiteClock "0:00:26"]
[BlackClock "0:00:10"]

1. c4 {[%clk 0:03:00]}  e5 {[%clk 0:02:59]} 2. Nf3 {[%clk 0:03:00]}  e4 {[%clk 0:02:56]} 3. Nd4 {[%clk 0:03:00]}  Nc6 {[%clk 0:02:57]} 4. Nc2 {[%clk 0:03:01]}  Nf6 {[%clk 0:02:57]} 5. Nc3 {[%clk 0:03:01]}  Bc5 {[%clk 0:02:55]} 6. g3 {[%clk 0:03:01]}  O-O {[%clk 0:02:55]} 7. Bg2 {[%clk 0:03:02]}  Re8 {[%clk 0:02:56]} 8. O-O {[%clk 0:03:02]}  d6 {[%clk 0:02:56]} 9. Ne3 {[%clk 0:03:02]}  a5 {[%clk 0:02:38]} 10. b3 {[%clk 0:03:02]}  Bd7 {[%clk 0:02:26]} 11. d3 {[%clk 0:03:00]}  exd3 {[%clk 0:02:26]} 12. Qxd3 {[%clk 0:03:01]}  Ne5 {[%clk 0:02:15]} 13. Qc2 {[%clk 0:02:59]}  c6 {[%clk 0:02:10]} 14. Rd1 {[%clk 0:02:48]}  Qc7 {[%clk 0:01:58]} 15. Nf5 {[%clk 0:02:42]}  Neg4 {[%clk 0:01:30]} 16. e3 {[%clk 0:02:37]}  Rad8 {[%clk 0:01:27]} 17. h3 {[%clk 0:02:31]}  Ne5 {[%clk 0:01:23]} 18. Bb2 {[%clk 0:02:29]}  Qc8 {[%clk 0:01:15]} 19. g4 {[%clk 0:02:17]}  h5 {[%clk 0:01:10]} 20. Nxd6 {[%clk 0:01:18]}  Bxd6 {[%clk 0:01:09]} 21. Rxd6 {[%clk 0:01:18]}  hxg4 {[%clk 0:01:10]} 22. Rxf6 {[%clk 0:01:07]}  gxh3 {[%clk 0:01:10]} 23. Bh1 {[%clk 0:00:53]}  h2+ {[%clk 0:01:10]} 24. Kf1 {[%clk 0:00:43]}  gxf6 {[%clk 0:00:58]} 25. Ne4 {[%clk 0:00:43]}  Bh3+ {[%clk 0:00:55]} 26. Ke2 {[%clk 0:00:43]}  Qf5 {[%clk 0:00:51]} 27. f4 {[%clk 0:00:32]}  Qg4+ {[%clk 0:00:22]} 28. Kf2 {[%clk 0:00:28]}  Nd3+ {[%clk 0:00:14]} 29. Qxd3 {[%clk 0:00:28]}  Qh4+ {[%clk 0:00:15]} 30. Ke2 {[%clk 0:00:28]}  Bg4+ {[%clk 0:00:14]} 31. Kd2 {[%clk 0:00:28]}  Rxd3+ {[%clk 0:00:14]} 32. Kxd3 {[%clk 0:00:29]}  Bf5 {[%clk 0:00:14]} 33. Bd4 {[%clk 0:00:26]}  Qh7 {[%clk 0:00:10]} 0-1


[Site "https://www.chess.com"]

[Event "Titled Tuesday Blitz April 05 Late 2022"]
[White "Sarkar, Justin"]
[Black "Martin Barcelo, Carles"]
[WhiteFideId "2010011"]
[BlackFideId "24561444"]
[WhiteElo "2038"]
[BlackElo "1875"]
[Result "1-0"]
[Round "07"]
[TimeControl "180+1"]
[Date "2022.04.06"]
[WhiteClock "0:00:06"]
[BlackClock "0:01:05"]

1. d4 {[%clk 0:02:58]}  d5 {[%clk 0:02:57]} 2. c4 {[%clk 0:02:57]}  e6 {[%clk 0:02:57]} 3. Nc3 {[%clk 0:02:54]}  Nf6 {[%clk 0:02:55]} 4. Bg5 {[%clk 0:02:51]}  Be7 {[%clk 0:02:55]} 5. e3 {[%clk 0:02:50]}  O-O {[%clk 0:02:54]} 6. Nf3 {[%clk 0:02:50]}  b6 {[%clk 0:02:49]} 7. cxd5 {[%clk 0:02:42]}  Nxd5 {[%clk 0:02:48]} 8. Bxe7 {[%clk 0:02:42]}  Qxe7 {[%clk 0:02:48]} 9. Bd3 {[%clk 0:02:34]}  Nxc3 {[%clk 0:02:44]} 10. bxc3 {[%clk 0:02:35]}  Bb7 {[%clk 0:02:43]} 11. O-O {[%clk 0:02:33]}  c5 {[%clk 0:02:43]} 12. Ne5 {[%clk 0:02:19]}  Nc6 {[%clk 0:02:36]} 13. f4 {[%clk 0:01:52]}  Rad8 {[%clk 0:02:28]} 14. Qh5 {[%clk 0:01:38]}  g6 {[%clk 0:02:13]} 15. Qh6 {[%clk 0:01:37]}  cxd4 {[%clk 0:02:08]} 16. cxd4 {[%clk 0:01:28]}  Qf6 {[%clk 0:01:59]} 17. Rac1 {[%clk 0:01:03]}  Na5 {[%clk 0:01:39]} 18. Rc7 {[%clk 0:00:57]}  Rc8 {[%clk 0:01:39]} 19. Rfc1 {[%clk 0:00:26]}  Qg7 {[%clk 0:01:31]} 20. Qh4 {[%clk 0:00:17]}  Rfe8 {[%clk 0:01:22]} 21. Nxf7 {[%clk 0:00:12]}  Kf8 {[%clk 0:01:07]} 22. Nh6 {[%clk 0:00:07]}  Rxc7 {[%clk 0:01:06]} 23. Rxc7 {[%clk 0:00:06]}  Qxc7 {[%clk 0:01:07]} 24. Qf6+ {[%clk 0:00:06]}  Qf7 {[%clk 0:01:05]} 25. Qxf7# {[%clk 0:00:06]} 1-0


[Site "https://www.chess.com"]

[Event "Titled Tuesday Blitz April 05 Late 2022"]
[White "Smirnov, Pavel"]
[Black "Nasuta, Grzegorz"]
[WhiteFideId "4123425"]
[BlackFideId "1141686"]
[WhiteElo "2539"]
[BlackElo "2396"]
[Result "1-0"]
[Round "07"]
[TimeControl "180+1"]
[Date "2022.04.05"]
[WhiteClock "0:01:35"]
[BlackClock "0:00:02"]

1. e4 {[%clk 0:03:00]}  c6 {[%clk 0:02:59]} 2. d4 {[%clk 0:03:00]}  d5 {[%clk 0:02:58]} 3. Nc3 {[%clk 0:02:56]}  dxe4 {[%clk 0:02:58]} 4. Nxe4 {[%clk 0:02:57]}  Bf5 {[%clk 0:02:57]} 5. Ng3 {[%clk 0:02:57]}  Bg6 {[%clk 0:02:56]} 6. h4 {[%clk 0:02:57]}  h6 {[%clk 0:02:56]} 7. Nf3 {[%clk 0:02:57]}  Nd7 {[%clk 0:02:53]} 8. h5 {[%clk 0:02:57]}  Bh7 {[%clk 0:02:53]} 9. Bd3 {[%clk 0:02:57]}  Ngf6 {[%clk 0:02:51]} 10. Bxh7 {[%clk 0:02:55]}  Nxh7 {[%clk 0:02:52]} 11. Qd3 {[%clk 0:02:54]}  e6 {[%clk 0:02:52]} 12. Bd2 {[%clk 0:02:54]}  Qc7 {[%clk 0:02:42]} 13. O-O-O {[%clk 0:02:50]}  Nhf6 {[%clk 0:02:42]} 14. Ne4 {[%clk 0:02:48]}  O-O-O {[%clk 0:02:37]} 15. g3 {[%clk 0:02:46]}  Nxe4 {[%clk 0:02:29]} 16. Qxe4 {[%clk 0:02:42]}  Bd6 {[%clk 0:02:27]} 17. Kb1 {[%clk 0:02:40]}  c5 {[%clk 0:02:27]} 18. c4 {[%clk 0:02:36]}  Kb8 {[%clk 0:02:26]} 19. Bc3 {[%clk 0:02:34]}  cxd4 {[%clk 0:02:14]} 20. Rxd4 {[%clk 0:02:32]}  Nf6 {[%clk 0:01:58]} 21. Qe2 {[%clk 0:02:31]}  Ka8 {[%clk 0:01:55]} 22. Rhd1 {[%clk 0:02:28]}  Bc5 {[%clk 0:01:55]} 23. Rxd8+ {[%clk 0:02:25]}  Rxd8 {[%clk 0:01:56]} 24. Rxd8+ {[%clk 0:02:11]}  Qxd8 {[%clk 0:01:57]} 25. Ne5 {[%clk 0:02:12]}  Qc7 {[%clk 0:01:50]} 26. g4 {[%clk 0:02:10]}  Bd6 {[%clk 0:01:46]} 27. f4 {[%clk 0:02:10]}  Bxe5 {[%clk 0:01:40]} 28. Bxe5 {[%clk 0:02:07]}  Qc6 {[%clk 0:01:36]} 29. Qd3 {[%clk 0:02:01]}  b6 {[%clk 0:01:12]} 30. b4 {[%clk 0:01:57]}  Nd7 {[%clk 0:00:09]} 31. Bxg7 {[%clk 0:01:55]}  Kb7 {[%clk 0:00:09]} 32. Kb2 {[%clk 0:01:52]}  Kc8 {[%clk 0:00:08]} 33. Kb3 {[%clk 0:01:47]}  Qg2 {[%clk 0:00:08]} 34. g5 {[%clk 0:01:47]}  a5 {[%clk 0:00:03]} 35. a3 {[%clk 0:01:44]}  Qg1 {[%clk 0:00:01]} 36. gxh6 {[%clk 0:01:41]}  b5 {[%clk 0:00:01]} 37. cxb5 {[%clk 0:01:40]}  Nb6 {[%clk 0:00:01]} 38. bxa5 {[%clk 0:01:38]}  Nd5 {[%clk 0:00:02]} 39. Bd4 {[%clk 0:01:35]} 1-0


[Site "https://www.chess.com"]

[Event "Titled Tuesday Blitz April 05 Late 2022"]
[White "Suarez Uriel, Adrian"]
[Black "Kohler, Aran"]
[WhiteFideId "22230874"]
[BlackFideId "1002856"]
[WhiteElo "2316"]
[BlackElo "2324"]
[Result "0-1"]
[Round "07"]
[TimeControl "180+1"]
[Date "2022.04.06"]
[WhiteClock "0:01:43"]
[BlackClock "0:01:29"]

1. d4 {[%clk 0:03:00]}  Nf6 {[%clk 0:02:58]} 2. c4 {[%clk 0:02:59]}  c5 {[%clk 0:02:57]} 3. d5 {[%clk 0:02:56]}  b5 {[%clk 0:02:57]} 4. cxb5 {[%clk 0:02:56]}  a6 {[%clk 0:02:58]} 5. bxa6 {[%clk 0:02:56]}  Bxa6 {[%clk 0:02:58]} 6. Nc3 {[%clk 0:02:56]}  g6 {[%clk 0:02:57]} 7. e4 {[%clk 0:02:56]}  Bxf1 {[%clk 0:02:56]} 8. Kxf1 {[%clk 0:02:57]}  d6 {[%clk 0:02:56]} 9. g3 {[%clk 0:02:57]}  Bg7 {[%clk 0:02:56]} 10. Kg2 {[%clk 0:02:58]}  O-O {[%clk 0:02:56]} 11. Nge2 {[%clk 0:02:58]}  Nbd7 {[%clk 0:02:52]} 12. h4 {[%clk 0:02:59]}  h6 {[%clk 0:02:42]} 13. h5 {[%clk 0:02:57]}  g5 {[%clk 0:02:41]} 14. f4 {[%clk 0:02:57]}  gxf4 {[%clk 0:02:20]} 15. gxf4 {[%clk 0:02:55]}  Kh8 {[%clk 0:02:16]} 16. Ng3 {[%clk 0:02:49]}  Rg8 {[%clk 0:02:13]} 17. Nf5 {[%clk 0:02:31]}  Bf8+ {[%clk 0:02:11]} 18. Kh3 {[%clk 0:02:31]}  e6 {[%clk 0:02:07]} 19. dxe6 {[%clk 0:02:27]}  fxe6 {[%clk 0:02:08]} 20. Nh4 {[%clk 0:02:28]}  Ng4 {[%clk 0:01:54]} 21. Qf3 {[%clk 0:02:18]}  Ndf6 {[%clk 0:01:44]} 22. Ng6+ {[%clk 0:02:16]}  Kh7 {[%clk 0:01:41]} 23. e5 {[%clk 0:02:12]}  dxe5 {[%clk 0:01:40]} 24. fxe5 {[%clk 0:02:13]}  Nxh5 {[%clk 0:01:35]} 25. Qf7+ {[%clk 0:02:04]}  Rg7 {[%clk 0:01:32]} 26. Nxf8+ {[%clk 0:01:49]}  Qxf8 {[%clk 0:01:32]} 27. Qxf8 {[%clk 0:01:50]}  Rxf8 {[%clk 0:01:30]} 28. Bd2 {[%clk 0:01:44]}  Nf2+ {[%clk 0:01:30]} 29. Kh4 {[%clk 0:01:44]}  Rg4+ {[%clk 0:01:28]} 30. Kxh5 {[%clk 0:01:43]}  Rf5+ {[%clk 0:01:29]} 0-1


[Site "https://www.chess.com"]

[Event "Titled Tuesday Blitz April 05 Late 2022"]
[White "Swicarz, Maciej"]
[Black "Domingo Nunez, Alejandro"]
[WhiteFideId "1113585"]
[BlackFideId "22245561"]
[WhiteElo "2057"]
[BlackElo "2215"]
[Result "0-1"]
[Round "07"]
[TimeControl "180+1"]
[Date "2022.04.06"]
[WhiteClock "0:00:20"]
[BlackClock "0:00:08"]

1. c4 {[%clk 0:03:00]}  g6 {[%clk 0:03:00]} 2. Nc3 {[%clk 0:03:00]}  Bg7 {[%clk 0:03:01]} 3. e4 {[%clk 0:03:00]}  c5 {[%clk 0:03:01]} 4. Nf3 {[%clk 0:02:59]}  Nc6 {[%clk 0:03:02]} 5. d3 {[%clk 0:02:59]}  d6 {[%clk 0:03:02]} 6. g3 {[%clk 0:02:58]}  Bg4 {[%clk 0:03:02]} 7. Bg2 {[%clk 0:02:57]}  h5 {[%clk 0:03:02]} 8. h3 {[%clk 0:02:56]}  Bxf3 {[%clk 0:03:02]} 9. Bxf3 {[%clk 0:02:57]}  Rb8 {[%clk 0:02:59]} 10. Bg2 {[%clk 0:02:55]}  a6 {[%clk 0:03:00]} 11. O-O {[%clk 0:02:46]}  b5 {[%clk 0:02:59]} 12. cxb5 {[%clk 0:02:45]}  axb5 {[%clk 0:03:00]} 13. Nd5 {[%clk 0:02:36]}  e6 {[%clk 0:02:59]} 14. Ne3 {[%clk 0:02:36]}  Nge7 {[%clk 0:02:59]} 15. f4 {[%clk 0:02:30]}  Nd4 {[%clk 0:02:58]} 16. Bd2 {[%clk 0:02:22]}  O-O {[%clk 0:02:44]} 17. Rb1 {[%clk 0:02:20]}  b4 {[%clk 0:02:32]} 18. g4 {[%clk 0:02:14]}  hxg4 {[%clk 0:02:30]} 19. hxg4 {[%clk 0:02:15]}  Qb6 {[%clk 0:02:01]} 20. f5 {[%clk 0:02:11]}  exf5 {[%clk 0:02:00]} 21. gxf5 {[%clk 0:02:09]}  d5 {[%clk 0:01:18]} 22. Qg4 {[%clk 0:01:42]}  c4 {[%clk 0:01:11]} 23. fxg6 {[%clk 0:01:39]}  Qxg6 {[%clk 0:00:46]} 24. Qxg6 {[%clk 0:01:34]}  fxg6 {[%clk 0:00:47]} 25. dxc4 {[%clk 0:01:30]}  Ne2+ {[%clk 0:00:46]} 26. Kh2 {[%clk 0:01:20]}  Be5+ {[%clk 0:00:46]} 27. Kh3 {[%clk 0:01:20]}  Nf4+ {[%clk 0:00:31]} 28. Kg4 {[%clk 0:01:20]}  d4 {[%clk 0:00:30]} 29. Nd5 {[%clk 0:01:10]}  Nexd5 {[%clk 0:00:31]} 30. exd5 {[%clk 0:01:02]}  Nxg2 {[%clk 0:00:31]} 31. Rxf8+ {[%clk 0:01:01]}  Rxf8 {[%clk 0:00:30]} 32. Bxb4 {[%clk 0:01:00]}  Rf4+ {[%clk 0:00:26]} 33. Kg5 {[%clk 0:01:00]}  Kf7 {[%clk 0:00:15]} 34. Rh1 {[%clk 0:00:52]}  Rf5+ {[%clk 0:00:13]} 35. Kh6 {[%clk 0:00:46]}  Bf6 {[%clk 0:00:10]} 36. Kh7 {[%clk 0:00:28]}  Nh4 {[%clk 0:00:09]} 37. Bd2 {[%clk 0:00:28]}  Rh5+ {[%clk 0:00:08]} 38. Bh6 {[%clk 0:00:28]}  Bg7 {[%clk 0:00:07]} 39. Rf1+ {[%clk 0:00:28]}  Nf5 {[%clk 0:00:08]} 40. Rh1 {[%clk 0:00:22]}  Rxh1 {[%clk 0:00:07]} 41. d6 {[%clk 0:00:20]}  Rxh6# {[%clk 0:00:08]} 0-1


[Site "https://www.chess.com"]

[Event "Titled Tuesday Blitz April 05 Late 2022"]
[White "Sztokbant, Bernardo Vainzoff"]
[Black "Diaz Perez, Michel Alejandro"]
[WhiteFideId "2115956"]
[BlackFideId "3517179"]
[WhiteElo "2225"]
[BlackElo "2313"]
[Result "1/2-1/2"]
[Round "07"]
[TimeControl "180+1"]
[Date "2022.04.06"]
[WhiteClock "0:00:06"]
[BlackClock "0:00:11"]

1. e4 {[%clk 0:03:00]}  c6 {[%clk 0:02:59]} 2. d4 {[%clk 0:02:59]}  d5 {[%clk 0:03:00]} 3. exd5 {[%clk 0:02:57]}  cxd5 {[%clk 0:03:00]} 4. Bd3 {[%clk 0:02:58]}  Nf6 {[%clk 0:03:01]} 5. h3 {[%clk 0:02:56]}  Nc6 {[%clk 0:03:01]} 6. c3 {[%clk 0:02:56]}  g6 {[%clk 0:02:58]} 7. Nf3 {[%clk 0:02:55]}  Bg7 {[%clk 0:02:57]} 8. O-O {[%clk 0:02:55]}  O-O {[%clk 0:02:58]} 9. Re1 {[%clk 0:02:55]}  Rb8 {[%clk 0:02:56]} 10. Bf4 {[%clk 0:02:55]}  Ra8 {[%clk 0:02:56]} 11. Nbd2 {[%clk 0:02:55]}  Bf5 {[%clk 0:02:51]} 12. Qe2 {[%clk 0:02:54]}  Bxd3 {[%clk 0:02:48]} 13. Qxd3 {[%clk 0:02:55]}  a6 {[%clk 0:02:45]} 14. a4 {[%clk 0:02:54]}  Re8 {[%clk 0:02:39]} 15. Re2 {[%clk 0:02:54]}  Qc8 {[%clk 0:02:37]} 16. Rae1 {[%clk 0:02:52]}  Qf5 {[%clk 0:02:37]} 17. Qe3 {[%clk 0:02:46]}  b5 {[%clk 0:02:27]} 18. axb5 {[%clk 0:02:45]}  axb5 {[%clk 0:02:28]} 19. Nb3 {[%clk 0:02:39]}  Ne4 {[%clk 0:02:25]} 20. Nfd2 {[%clk 0:02:34]}  Nxd2 {[%clk 0:02:21]} 21. Qxd2 {[%clk 0:02:33]}  Ra2 {[%clk 0:02:07]} 22. Bg3 {[%clk 0:02:23]}  h5 {[%clk 0:02:04]} 23. Nc5 {[%clk 0:02:21]}  b4 {[%clk 0:02:01]} 24. Qd3 {[%clk 0:02:09]}  Qxd3 {[%clk 0:01:57]} 25. Nxd3 {[%clk 0:02:10]}  e6 {[%clk 0:01:54]} 26. Bd6 {[%clk 0:02:02]}  bxc3 {[%clk 0:01:36]} 27. bxc3 {[%clk 0:02:03]}  Rea8 {[%clk 0:01:36]} 28. Rxa2 {[%clk 0:01:51]}  Rxa2 {[%clk 0:01:36]} 29. Rb1 {[%clk 0:01:48]}  Rc2 {[%clk 0:01:35]} 30. Rc1 {[%clk 0:01:38]}  Rd2 {[%clk 0:01:31]} 31. Nb4 {[%clk 0:01:13]}  Na5 {[%clk 0:01:22]} 32. Bf4 {[%clk 0:01:12]}  Rb2 {[%clk 0:01:20]} 33. Ra1 {[%clk 0:01:03]}  Nc4 {[%clk 0:01:17]} 34. Ra8+ {[%clk 0:01:03]}  Kh7 {[%clk 0:01:15]} 35. Ra7 {[%clk 0:01:03]}  Kg8 {[%clk 0:00:48]} 36. Ra8+ {[%clk 0:01:01]}  Kh7 {[%clk 0:00:48]} 37. Ra7 {[%clk 0:01:00]}  g5 {[%clk 0:00:49]} 38. Bxg5 {[%clk 0:00:55]}  Kg6 {[%clk 0:00:49]} 39. Be3 {[%clk 0:00:46]}  Rb3 {[%clk 0:00:46]} 40. Nd3 {[%clk 0:00:42]}  Nxe3 {[%clk 0:00:37]} 41. fxe3 {[%clk 0:00:43]}  Bh6 {[%clk 0:00:37]} 42. Kf2 {[%clk 0:00:40]}  Rxc3 {[%clk 0:00:37]} 43. Ke2 {[%clk 0:00:41]}  f6 {[%clk 0:00:36]} 44. Ra6 {[%clk 0:00:39]}  Rc2+ {[%clk 0:00:35]} 45. Kf3 {[%clk 0:00:39]}  Kf7 {[%clk 0:00:31]} 46. Ra7+ {[%clk 0:00:34]}  Kg6 {[%clk 0:00:31]} 47. Ra6 {[%clk 0:00:34]}  Kf7 {[%clk 0:00:29]} 48. Nc5 {[%clk 0:00:27]}  e5 {[%clk 0:00:28]} 49. Ra7+ {[%clk 0:00:27]}  Kg6 {[%clk 0:00:27]} 50. Ra6 {[%clk 0:00:24]}  Rc3 {[%clk 0:00:25]} 51. Nd7 {[%clk 0:00:21]}  Rxe3+ {[%clk 0:00:24]} 52. Kf2 {[%clk 0:00:21]}  exd4 {[%clk 0:00:21]} 53. Nxf6 {[%clk 0:00:12]}  Kf5 {[%clk 0:00:18]} 54. Nxd5 {[%clk 0:00:10]}  Re6 {[%clk 0:00:16]} 55. g4+ {[%clk 0:00:09]}  hxg4 {[%clk 0:00:14]} 56. hxg4+ {[%clk 0:00:10]}  Ke5 {[%clk 0:00:14]} 57. Rxe6+ {[%clk 0:00:07]}  Kxe6 {[%clk 0:00:15]} 58. Nb4 {[%clk 0:00:05]}  Ke5 {[%clk 0:00:12]} 59. Kf3 {[%clk 0:00:04]}  Bg5 {[%clk 0:00:09]} 60. Nc6+ {[%clk 0:00:04]}  Kd5 {[%clk 0:00:09]} 61. Nxd4 {[%clk 0:00:05]}  Kxd4 {[%clk 0:00:10]} 62. Kg2 {[%clk 0:00:05]}  Ke4 {[%clk 0:00:10]} 63. Kf1 {[%clk 0:00:06]}  Kf3 {[%clk 0:00:10]} 64. Ke1 {[%clk 0:00:06]}  Kxg4 {[%clk 0:00:11]} 1/2-1/2


[Site "https://www.chess.com"]

[Event "Titled Tuesday Blitz April 05 Late 2022"]
[White "Tanenbaum, Zachary"]
[Black "Babazada, Khazar"]
[WhiteFideId "2060850"]
[BlackFideId "13413554"]
[WhiteElo "2168"]
[BlackElo "2406"]
[Result "1/2-1/2"]
[Round "07"]
[TimeControl "180+1"]
[Date "2022.04.05"]
[WhiteClock "0:00:07"]
[BlackClock "0:00:17"]

1. e4 {[%clk 0:03:00]}  e5 {[%clk 0:03:00]} 2. Nf3 {[%clk 0:03:00]}  d6 {[%clk 0:03:00]} 3. d4 {[%clk 0:03:00]}  exd4 {[%clk 0:03:00]} 4. Nxd4 {[%clk 0:03:01]}  Nf6 {[%clk 0:02:59]} 5. Nc3 {[%clk 0:03:01]}  Be7 {[%clk 0:02:59]} 6. Bc4 {[%clk 0:03:01]}  O-O {[%clk 0:02:59]} 7. O-O {[%clk 0:02:59]}  Nc6 {[%clk 0:02:58]} 8. Nxc6 {[%clk 0:02:57]}  bxc6 {[%clk 0:02:58]} 9. Bb3 {[%clk 0:02:57]}  Nd7 {[%clk 0:02:56]} 10. f4 {[%clk 0:02:55]}  Nc5 {[%clk 0:02:56]} 11. Be3 {[%clk 0:02:52]}  Nxb3 {[%clk 0:02:56]} 12. axb3 {[%clk 0:02:53]}  Bf6 {[%clk 0:02:52]} 13. Qf3 {[%clk 0:02:48]}  Re8 {[%clk 0:02:49]} 14. Rxa7 {[%clk 0:01:52]}  Rxa7 {[%clk 0:02:47]} 15. Bxa7 {[%clk 0:01:53]}  c5 {[%clk 0:02:26]} 16. Rd1 {[%clk 0:01:53]}  Bd4+ {[%clk 0:02:16]} 17. Kh1 {[%clk 0:01:52]}  Bb7 {[%clk 0:02:16]} 18. Rxd4 {[%clk 0:01:19]}  cxd4 {[%clk 0:02:16]} 19. Bxd4 {[%clk 0:01:20]}  Qe7 {[%clk 0:02:16]} 20. Qg3 {[%clk 0:01:17]}  f6 {[%clk 0:02:16]} 21. h3 {[%clk 0:00:25]}  Bxe4 {[%clk 0:02:14]} 22. Kh2 {[%clk 0:00:24]}  Bb7 {[%clk 0:02:10]} 23. Nd1 {[%clk 0:00:20]}  c5 {[%clk 0:02:06]} 24. Bc3 {[%clk 0:00:17]}  d5 {[%clk 0:02:06]} 25. Nf2 {[%clk 0:00:16]}  d4 {[%clk 0:02:06]} 26. Ba5 {[%clk 0:00:16]}  h5 {[%clk 0:01:53]} 27. Nd3 {[%clk 0:00:16]}  Be4 {[%clk 0:01:44]} 28. Bb6 {[%clk 0:00:15]}  Bxd3 {[%clk 0:01:42]} 29. cxd3 {[%clk 0:00:16]}  Qd6 {[%clk 0:01:33]} 30. Ba5 {[%clk 0:00:14]}  Re3 {[%clk 0:01:34]} 31. Qf2 {[%clk 0:00:09]}  Qd5 {[%clk 0:01:33]} 32. Bd2 {[%clk 0:00:09]}  Rxd3 {[%clk 0:01:32]} 33. Qe2 {[%clk 0:00:09]}  Rxb3 {[%clk 0:01:31]} 34. f5 {[%clk 0:00:07]}  Qxf5 {[%clk 0:01:29]} 35. Qc4+ {[%clk 0:00:06]}  Kh7 {[%clk 0:01:27]} 36. Qxb3 {[%clk 0:00:07]}  h4 {[%clk 0:01:25]} 37. Qc4 {[%clk 0:00:06]}  Qf2 {[%clk 0:01:22]} 38. Qd3+ {[%clk 0:00:06]}  g6 {[%clk 0:01:20]} 39. b4 {[%clk 0:00:06]}  c4 {[%clk 0:01:18]} 40. Qxc4 {[%clk 0:00:05]}  Qxd2 {[%clk 0:01:19]} 41. Qf7+ {[%clk 0:00:05]}  Kh6 {[%clk 0:01:18]} 42. Qf8+ {[%clk 0:00:05]}  Kg5 {[%clk 0:01:17]} 43. Qc5+ {[%clk 0:00:05]}  Kf4 {[%clk 0:01:14]} 44. Qd6+ {[%clk 0:00:05]}  Ke3 {[%clk 0:01:12]} 45. b5 {[%clk 0:00:02]}  Qb2 {[%clk 0:01:06]} 46. Qe6+ {[%clk 0:00:01]}  Kd2 {[%clk 0:01:05]} 47. b6 {[%clk 0:00:02]}  d3 {[%clk 0:01:03]} 48. Qc6 {[%clk 0:00:03]}  Qe5+ {[%clk 0:00:32]} 49. Kh1 {[%clk 0:00:03]}  Ke2 {[%clk 0:00:33]} 50. b7 {[%clk 0:00:03]}  d2 {[%clk 0:00:28]} 51. Qf3+ {[%clk 0:00:03]}  Ke1 {[%clk 0:00:27]} 52. Qb3 {[%clk 0:00:04]}  d1=Q {[%clk 0:00:24]} 53. b8=Q {[%clk 0:00:04]}  Kf2+ {[%clk 0:00:24]} 54. Qxd1 {[%clk 0:00:05]}  Qxb8 {[%clk 0:00:19]} 55. Qd2+ {[%clk 0:00:05]}  Kf1 {[%clk 0:00:16]} 56. Qd1+ {[%clk 0:00:06]}  Kf2 {[%clk 0:00:16]} 57. Qd2+ {[%clk 0:00:06]}  Kf1 {[%clk 0:00:17]} 58. Qd1+ {[%clk 0:00:07]}  Kf2 {[%clk 0:00:17]} 1/2-1/2


[Site "https://www.chess.com"]